Cogmind - Beta 15 @@@ ROGUE MODE // 2025.06.13 @ 02:49:40 Player: wmss Result: Destroyed by X-62 Marksman with Gauss Rifle Performance ------------- Evolutions (3) 1500 Regions Visited (4) 800 Robots Destroyed (48) 240 Value Destroyed (1908) 1908 Prototype IDs (5) 100 Alien Tech Used (0) 0 Bonus (0) 0 TOTAL SCORE: 4548 Bonus ------- None Cogmind --------- Core Integrity 0/700 Matter 78/300 Energy 80/100 System Corruption 3% Temperature Cool (0) Movement Core (50) Location -7/Factory Parts ------- > --- POWER (1) -------- (None) > --- PROPULSION (4) --- (None) > --- UTILITY (5) ------ Advanced Visual Processing Unit > --- WEAPON (3) ------- (None) > --- INVENTORY (5) ---- Compact Matter Pod (0) Melee Analysis Suite Pulse Rifle EM Pulse Cannon Peak State ------------ > --- POWER ------------ Improved Deuterium Engine > --- PROPULSION ------- Aluminum Leg Improved Aluminum Leg Carbon-fiber Leg Carbon-fiber Leg > --- UTILITY ---------- Medium Storage Unit Improved Sensor Array Signal Interpreter Advanced Targeting Computer Improved Light Armor Plating > --- WEAPON ----------- Advanced Beam Cannon Improved Assault Rifle Flak Gun > --- INVENTORY -------- Deuterium Engine Carbon-fiber Leg Compact Matter Pod Advanced Visual Processing Unit Melee Analysis Suite Matter Filter ECM Suite Assault Cannon Precision Grenade Launcher Power Maul [Rating: 37] Favorites ----------- Power Deuterium Engine Engine Deuterium Engine Propulsion Aluminum Leg Leg Aluminum Leg Utility Signal Interpreter Device Reaction Control System Storage Medium Storage Unit Processor Signal Interpreter Protection Medium Armor Plating Weapon Improved Assault Rifle Energy Gun Medium Laser Energy Cannon Light EM Pulse Cannon Ballistic Gun Improved Assault Rifle Ballistic Cannon Assault Cannon Launcher Precision Grenade Launcher Impact Weapon Power Maul Build | -11 -10 -9 -8 -7 ------- Run | Yrd Mat Mat Mat Fac Slots Evolved 6 | . . 2 2 2 Power . | . . . . . Propulsion 2 | . . 1 1 . Utility 3 | . . 1 1 1 Weapon 1 | . . . . 1 Parts Attached 69 | 6 10 19 12 22 Power 7 | 1 1 2 1 2 Engine 7 | 1 1 2 1 2 Core . | . . . . . Reactor . | . . . . . Propulsion 15 | 2 . 6 7 . Treads . | . . . . . Leg 15 | 2 . 6 7 . Wheel . | . . . . . Hover . | . . . . . Flight . | . . . . . Utility 25 | 1 7 4 4 9 Device 9 | . 2 1 2 4 Storage 5 | 1 2 1 . 1 Processor 6 | . 2 1 1 2 Hackware . | . . . . . Protection 5 | . 1 1 1 2 Artifact . | . . . . . Weapon 22 | 2 2 7 . 11 Energy Gun 4 | 2 . . . 2 Energy Cannon 5 | . 2 1 . 2 Ballistic Gun 9 | . . 6 . 3 Ballistic Cannon 1 | . . . . 1 Launcher 2 | . . . . 2 Special Weapon . | . . . . . Impact Weapon 1 | . . . . 1 Slashing Weapon . | . . . . . Piercing Weapon . | . . . . . Special Melee Weapon . | . . . . . Unidentified Prototypes 1 | . . . . 1 Parts Lost 25 | . . 1 . 24 Power 3 | . . . . 3 Propulsion 6 | . . . . 6 Utility 9 | . . 1 . 8 Weapon 7 | . . . . 7 Highest Loss Streak 8 | . . 1 . 8 To Critical Strikes . | . . . . . Average Backups 8 | 2 7 8 9 8 Power . | . 1 1 1 . Propulsion 1 | . 3 2 1 1 Utility 1 | . 1 1 . 2 Weapon 3 | . 2 4 5 2 Tool/Special . | . . . . . Unused Backups 23 | . 7 7 5 4 Power 3 | . 1 1 1 . Propulsion 6 | . 3 2 1 . Utility 2 | . 1 . . 1 Weapon 11 | . 2 4 3 2 Tool/Special 1 | . . . . 1 Average Slot Usage (%) 96 | . 96 99 99 91 Engine 9 | . 14 11 9 6 Leg 30 | . 27 33 36 26 Device 6 | . 1 . 7 11 Storage 9 | . 14 11 9 6 Processor 14 | . 9 12 18 14 Protection 2 | . . 8 1 2 Energy Gun 1 | . 6 . . . Energy Cannon 7 | . 20 5 . 4 Ballistic Gun 12 | . . 15 18 13 Peak Build Rating 37 | 6 10 17 28 37 Average Rating 20 | 4 8 13 23 30 On Entrance 11 | . 6 10 16 24 Naked Turns . | . . . . . Heaviest Build 42 | 12 18 26 30 42 Greatest Support 53 | 20 20 30 50 53 Greatest Overweight (x) 3 | . . . . 3 Average Overweight (x) . | . . . . . Largest Inventory Capacity 25 | 8 25 10 10 10 Average Capacity 9 | 6 8 8 10 9 Most Carried 10 | 4 9 10 10 10 Average Carried 8 | 2 7 8 9 8 Final Capacity 10 | 8 8 10 10 5 Final Carried 10 | 4 8 9 10 4 Class Distribution -------------------- 41% | Scavenger-Mutant 32% | Mutant 13% | Scavenger-Tank 9% | Scavenger-Skirmisher 3% | Scavenger-Gunner Dominant Class ---------------- Mutant | -10/Materials Scavenger-Mutant | -9/Materials Scavenger-Mutant | -8/Materials Scavenger-Tank | -7/Factory Resources | -11 -10 -9 -8 -7 ----------- Run | Yrd Mat Mat Mat Fac Matter Collected 1589 | 260 190 399 335 405 Remotely 80 | . 80 . . . Salvage Created 1726 | . 183 676 351 516 Parts 104 | . 11 39 23 31 Haulers Intercepted 2 | . . 2 . . Recyclers Shooed 1 | . . . 1 . Parts Field Recycled . | . . . . . Retrieved Matter . | . . . . . Parts Self-Destructed . | . . . . . Prevented . | . . . . . Kills | -11 -10 -9 -8 -7 ------- Run | Yrd Mat Mat Mat Fac Combat Hostiles Destroyed 41 | . 6 11 7 17 Guns 19 | . . 7 7 5 Cannons 8 | . 4 3 . 1 AOE 13 | . 2 . . 11 Classes Destroyed 11 | . 3 3 1 4 Worker 1 | . 1 . . . Builder 2 | . . . . 2 Hauler 2 | . . 2 . . Watcher 2 | . . 2 . . Swarmer 8 | . 3 . . 5 Grunt 14 | . 3 6 3 2 Brawler 1 | . . . . 1 Sentry 10 | . . 5 3 2 Specialist 4 | . . . . 4 Hunter 1 | . . . 1 . Programmer 3 | . . . . 3 Best Kill Streak 8 | . 4 3 3 8 Combat Bots Only 6 | . 3 3 3 6 Max Kills in Single Turn 3 | . 3 1 1 3 Gunslinging . | . . . . . Exploded 3 | . 2 . . 3 Melee . | . . . . . Uniques/NPCs Destroyed . | . . . . . Combat | -11 -10 -9 -8 -7 -------- Run | Yrd Mat Mat Mat Fac Hostile Shots Fired 328 | . 14 62 56 196 Missed 110 | . 4 15 16 75 Hits 218 | . 10 47 40 121 Melee 2 | . . . . 2 Projectile 216 | . 10 47 40 119 Critical Strikes 14 | . . 2 4 8 Damage Taken 4393 | . 116 661 598 3018 Core 1057 | . 13 187 136 721 Absorbed by Shields . | . . . . . Core Remaining (%) 80 | 100 94 53 75 . Volleys Fired 112 | . 5 44 29 34 Largest 3 | . 2 2 2 3 Hottest 126 | . 112 112 46 126 Shots Fired 228 | . 10 86 58 74 Gun 169 | . . 65 58 46 Cannon 49 | . 10 21 . 18 Launcher 10 | . . . . 10 Special . | . . . . . Kinetic 161 | . . 65 58 38 Thermal 25 | . . . . 25 Explosive 8 | . . . . 8 Electromagnetic 34 | . 10 21 . 3 Robot Hit Streak 24 | . 7 18 24 8 Robot Miss Streak 3 | . 1 3 3 3 Penetration Max . | . . . . . Secondary Targets 1 | . . . 1 . Max Gunslinging Chain 1 | . . . 1 . Shots Hit Robots 175 | . 8 65 49 53 Core Hits 104 | . 7 24 16 57 Critical Kills 1 | . . 1 . . Critical Parts Destroyed . | . . . . . Critical Strikes 1 | . . 1 . . Destroy 1 | . . 1 . . Melee Attacks 4 | . . . . 4 Impact 4 | . . . . 4 Slashing . | . . . . . Piercing . | . . . . . Sneak Attacks . | . . . . . Combat Hostiles . | . . . . . Follow-up Attacks . | . . . . . Damage Inflicted 4749 | . 259 1112 724 2654 Guns 2206 | . . 738 724 744 Cannons 779 | . 151 374 . 254 Explosions 1757 | . 108 . . 1649 Melee . | . . . . . Ramming 7 | . . . . 7 Kinetic 2043 | . . 738 724 581 Thermal 844 | . 108 . . 736 Explosive 1273 | . . . . 1273 Electromagnetic 582 | . 151 374 . 57 Impact . | . . . . . Slashing . | . . . . . Piercing . | . . . . . Highest Corruption 3 | . . . 2 3 Average Corruption 2 | . . . 2 2 Corruption Purged . | . . . . . Corruption Blocked . | . . . . . Effects 14 | . . . 2 12 Message Errors 4 | . . . . 4 Matter Fused 4 | . . . 1 3 Heat Flow Errors 2 | . . . 1 1 Data Loss (minor) 2 | . . . . 2 Data Loss (major) 1 | . . . . 1 Misfires 1 | . . . . 1 Overload Shots . | . . . . . Overflow Damage 152 | . . 2 . 150 Projectiles 2 | . . 2 . . Explosions 150 | . . . . 150 Melee . | . . . . . Knockbacks . | . . . . . Impact . | . . . . . Kinetic . | . . . . . Secondary . | . . . . . Self-Inflicted Damage 698 | . 34 . . 664 Shots 11 | . 1 . . 10 Rammed . | . . . . . Targets Rammed 1 | . . . . 1 Kicked 1 | . . . . 1 Crushed . | . . . . . Highest Temperature 270 | . 165 270 270 218 Average Temperature 77 | . 75 95 94 57 Received Heat Transfer 888 | . 24 288 243 333 Siege Activations . | . . . . . Martial Activations . | . . . . . Shielding Activations . | . . . . . Robots Disrupted . | . . . . . Combat Hostiles . | . . . . . Robots Corrupted 1 | . . 1 . . Combat Hostiles 1 | . . 1 . . Parts Fried 6 | . 1 5 . . Impact Corruptions . | . . . . . Robots Melted . | . . . . . Combat Hostiles . | . . . . . Parts Melted . | . . . . . Heat Transferred 1003 | . 100 . . 903 Parts Sabotaged . | . . . . . Parts Stolen . | . . . . . Parts Stripped . | . . . . . Power Chain Reactions 1 | . 1 . . . Alert | -11 -10 -9 -8 -7 ------- Run | Yrd Mat Mat Mat Fac Maximum Alert Level 1 | . . . . 1 Low Security (%) 86 | 100 100 100 100 60 Level 1 13 | . . . . 39 Level 2 . | . . . . . Level 3 . | . . . . . Level 4 . | . . . . . Level 5 . | . . . . . High Security . | . . . . . Max Security . | . . . . . Peak Influence 395 | . 78 86 82 395 Initial 19 | . . . 19 . Average 66 | . 13 34 15 151 Influence Increases 1625 | . 162 380 208 875 Destroy 0b10 Robot/C 820 | . 120 220 140 340 Destroy 0b10 Robot/NC 35 | . 5 20 . 10 Destroy Leader 258 | . 20 88 50 100 Successful Hack 35 | . 14 19 2 . Disable Machine 210 | . . . . 210 Destroy Structure 147 | . 3 3 1 140 Lose Combat Pursuer 120 | . . 30 15 75 Influence Decreases 1308 | . 162 333 255 558 Entered New Map 28 | . . . 28 . Time Decay 1040 | . 162 333 227 318 Lost Part 240 | . . . . 240 Squads Dispatched 18 | . 4 1 2 11 Investigation 4 | . 2 1 1 . Extermination 3 | . . . . 3 Reinforcement 8 | . 2 . 1 5 Assault . | . . . . . Garrison 3 | . . . . 3 Intercept . | . . . . . Searches Triggered . | . . . . . Construction Impeded 1 | . . . . 1 Haulers Reinforced . | . . . . . Active Scanning Responses . | . . . . . Cargo Convoy Interrupts 1 | . . . . 1 Stealth | -11 -10 -9 -8 -7 --------- Run | Yrd Mat Mat Mat Fac Distress Signals 7 | . 2 3 . 2 Communications Jammed . | . . . . . Distress Signals . | . . . . . Times Spotted 74 | . 9 19 7 39 Peak Tracking Total 6 | . 3 4 3 6 Tactical Retreats 13 | . . 2 1 10 Traps | -11 -10 -9 -8 -7 ------- Run | Yrd Mat Mat Mat Fac Traps Triggered 5 | . 2 . 2 1 Indirectly . | . . . . . Trap Hack Attempts . | . . . . . Triggered . | . . . . . Disarmed . | . . . . . Reprogrammed . | . . . . . Reused . | . . . . . Traps Extracted . | . . . . . Installed . | . . . . . Triggered . | . . . . . Machines | -11 -10 -9 -8 -7 ---------- Run | Yrd Mat Mat Mat Fac Machines Disabled 14 | . . . . 14 Max in Single Turn 5 | . . . . 5 Machines Repaired . | . . . . . Machines Dismantled . | . . . . . Machines Sabotaged . | . . . . . Overloaded Fab Kills . | . . . . . Hacking | -11 -10 -9 -8 -7 --------- Run | Yrd Mat Mat Mat Fac Machines Accessed 22 | . 9 6 4 3 Terminals 14 | . 6 4 2 2 Fabricators . | . . . . . Repair Stations 1 | . 1 . . . Recycling Units 5 | . 2 . 2 1 Scanalyzers 2 | . . 2 . . Garrison Access . | . . . . . Total Hacks 51 | . 20 17 10 4 Successful 31 | . 11 11 7 2 Failed 20 | . 9 6 3 2 Catastrophic 2 | . 2 . . . Database Lockouts . | . . . . . Manual 1 | . 1 . . . Terminals 35 | . 14 10 8 3 Fabricators . | . . . . . Repair Stations 1 | . 1 . . . Recycling Units 8 | . 5 . 2 1 Scanalyzers 7 | . . 7 . . Garrison Access . | . . . . . Terminal Hacks 18 | . 7 5 5 1 Record 5 | . 1 . 3 1 Robot Analysis 1 | . 1 . . . Prototype ID Bank 1 | . 1 . . . Emergency Access Points 1 | . 1 . . . Alert Level 3 | . 1 1 1 . Locate Traps 1 | . . 1 . . Dispatch Records 1 | . 1 . . . Transport Status 1 | . . . 1 . Reinforcement Status 1 | . . 1 . . Hauler Manifests 2 | . 1 1 . . Zone Layout 1 | . . 1 . . Fabricator Hacks . | . . . . . Repair Station Hacks 1 | . 1 . . . Scan Component 1 | . 1 . . . Recycling Unit Hacks 6 | . 3 . 2 1 Report Inventory 5 | . 2 . 2 1 Retrieve Matter 1 | . 1 . . . Scanalyzer 6 | . . 6 . . Insert Component 3 | . . 3 . . Analyze 3 | . . 3 . . Garrison Access Hacks . | . . . . . Unauthorized Hacks . | . . . . . Terminals . | . . . . . Fabricators . | . . . . . Repair Stations . | . . . . . Recycling Units . | . . . . . Scanalyzers . | . . . . . Garrison Access . | . . . . . Data Cores Recovered . | . . . . . Used . | . . . . . Hacking Detections 13 | . 5 5 1 2 Full Trace Events 2 | . 1 1 . . Feedback Events . | . . . . . Feedback Blocked . | . . . . . Robot Schematics Acquired . | . . . . . Robots Built . | . . . . . Authchips . | . . . . . Time . | . . . . . Total Robot Build Rating . | . . . . . Part Schematics Acquired 3 | . . 3 . . Parts Built . | . . . . . Authchips . | . . . . . Time . | . . . . . Total Part Build Rating . | . . . . . Parts Repaired . | . . . . . Time . | . . . . . Parts Recycled . | . . . . . Recycled Matter . | . . . . . Retrieved Matter . | . . . . . Retrieved Components . | . . . . . Parts Scanalyzed 3 | . . 3 . . Part Schematics Acquired 3 | . . 3 . . Parts Damaged . | . . . . . Bothacking | -11 -10 -9 -8 -7 ------------ Run | Yrd Mat Mat Mat Fac Used RIF Installer . | . . . . . Robots Hacked . | . . . . . Non-combat . | . . . . . Combat . | . . . . . Robot Hacks Applied . | . . . . . Relay Couplers Released . | . . . . . Fabnet Peak Effective % . | . . . . . Robots Rewired . | . . . . . Allies Hacked . | . . . . . Hacks Repelled . | . . . . . Allies | -11 -10 -9 -8 -7 -------- Run | Yrd Mat Mat Mat Fac Total Allies . | . . . . . Largest Group . | . . . . . Highest-Rated Group . | . . . . . Highest-Rated Ally . | . . . . . Total Orders . | . . . . . Ally Attacks . | . . . . . Total Damage . | . . . . . Kills . | . . . . . Allies Corrupted . | . . . . . Allies Melted . | . . . . . Intel | -11 -10 -9 -8 -7 ------- Run | Yrd Mat Mat Mat Fac Active Infowar (turns) 2698 | . . 156 1048 1494 Optics 1755 | . . 156 1048 551 Sensors 654 | . . . . 654 Terrain 328 | . . . 328 . T.N.C. 91 | . . . 91 . ECM 832 | . . . . 832 Robot Analysis Total 1 | . 1 . . . Derelict Logs Recovered . | . . . . . Drone Launches . | . . . . . Drone Recoveries . | . . . . . Exploration | -11 -10 -9 -8 -7 ------------- Run | Yrd Mat Mat Mat Fac Turns Passed 4506 | 75 938 852 1048 1593 Spaces Moved 2809 | 53 681 458 636 981 Core 142 | 6 . . . 136 Treads . | . . . . . Legs 2667 | 47 681 458 636 845 Wheels . | . . . . . Hover . | . . . . . Flight . | . . . . . Fastest Speed 50 | 50 120 120 120 50 Average Speed 118 | 112 120 120 120 117 Slowest Speed 260 | 120 120 120 120 260 Overloaded Moves . | . . . . . Propulsion Burnouts . | . . . . . Robots Hopped . | . . . . . Potential Cave-ins . | . . . . . Cave-ins Triggered . | . . . . . Exploration Rate (%) 39 | 3 80 42 46 24 Regions Visited 4 Branch Regions . Pre-discovered Areas . | . . . . . Known Exits Taken 3 | . 1 1 1 . Unknown Exits Taken 1 | 1 . . . . Scrap Searched . | . . . . . Spaces Dug 4 | . . . . 4 Terrain Destroyed 179 | . 2 . . 177 Melee 4 | . . . . 4 Projectile . | . . . . . AOE 175 | . 2 . . 173 Terrain Rammed . | . . . . . Walls Destroyed . | . . . . . Machines Disabled . | . . . . . Actions | -11 -10 -9 -8 -7 --------- Run | Yrd Mat Mat Mat Fac Total 3766 | 68 794 685 868 1351 Wait 590 | . 65 114 160 251 Move 2805 | 52 680 457 635 981 Hop . | . . . . . Pick Up 75 | 10 15 19 11 20 Fast Attach 11 | . 6 4 1 . Attach 34 | 6 2 2 3 21 Detach 8 | . 2 . 1 5 Swap 56 | . 6 17 12 21 Drop 70 | . 13 28 16 13 Fire 112 | . 5 44 29 34 Melee 4 | . . . . 4 Ram . | . . . . . Kick 1 | . . . . 1 Crush . | . . . . . Escape Stasis . | . . . . . Rewire . | . . . . . Trap . | . . . . . Miscellaneous . | . . . . . Route ------- -11/Scrapyard -10/Materials (discovered 2 exits: *Mat / [*Min]) -9/Materials (discovered 2 exits: *Mat / [*Min]) -8/Materials -7/Factory History --------- Turn | Location | Event 19 | -11/Scrapyard | Discovered new exit (range 15) 76 | -11/Scrapyard | Entered Materials 77 | -10/Materials | Met a group of wandering Federalists 179 | -10/Materials | Discovered new exit (range 9) 279 | -10/Materials | Discovered new exit (range 15) 323 | -10/Materials | Build established: Mutant 1013 | -10/Materials | Identified exit to Materials 1014 | -10/Materials | Entered another Materials area 1014 | -9/Materials | Evolved 2 slots: Propulsion x1, Utility x1 1420 | -9/Materials | Discovered new exit (range 14) 1584 | -9/Materials | Build established: Scavenger-Mutant 1844 | -9/Materials | Discovered new exit (range 3) 1848 | -9/Materials | Identified exit to Materials 1866 | -9/Materials | Entered another Materials area 1866 | -8/Materials | Evolved 2 slots: Propulsion x1, Utility x1 2875 | -8/Materials | Discovered new exit (range 3) 2879 | -8/Materials | Identified exit to Factory 2914 | -8/Materials | Entered Factory 2914 | -7/Factory | Evolved 2 slots: Utility x1, Weapon x1 3207 | -7/Factory | Build established: Scavenger-Tank 3483 | -7/Factory | Garrison activated, responded to threat 3823 | -7/Factory | Lost 4 parts (1p1n1u1w) 4267 | -7/Factory | Cargo convoy interrupted 4300 | -7/Factory | Core integrity fell below 50% 4351 | -7/Factory | Lost 8 parts (1p4n1u2w) 4412 | -7/Factory | Lost 7 parts (1p1n3u2w) 4451 | -7/Factory | Core integrity fell below 20% 4507 | -7/Factory | Destroyed by X-62 Marksman with Gauss Rifle Last Messages --------------- 04447_ Penetrated by Slug. 04451_ Slug penetrates A-02 Transporter. 04452_ W-25 Informer sends out distress signal. 04453_ Penetrated by Slug. 04455_ =3Q8ZQDOQYSZ,LGBGK83L<9V6GME%% 04456_ Penetrated by Slug. 04462_ Acquired Proton Missile Launcher. 04464_ Door malfunctions. 04465_ U-05 Engineer builds a Door. 04471_ Signal Interpreter destroyed. 04471_ System corrupted by crushing effect (+1). 04471_ U-05 Engineer lays Concrete. 04473_ System corrupted: Component data lost. 04473_ U-05 Engineer lays Concrete. 04493_ Assembly Bed disabled. 04501_ U-05 Engineer lays Concrete. 04505_ Slug penetrates X-62 Marksman. 04505_ Proton Missile Launcher destroyed. 04506_ U-05 Engineer lays Concrete. 04507_ Penetrated by Slug. Map ----- +----------------------------------------------------+ | ???????????????????????????????????????????# # """ | | ????????????????????????#??????????????????# # R" | | ??????????????????????? #??????????????????# # """ | | ??????????????????""""" ########???????????# # "" | | ?????????????????"""""" # #???????????# # | | ?????????????????"""""" # #???????????# #! | | ???????????????? # #?????####### ##### | | ???????????????? [! # #?????####### ##### | | ???????????????? =! # ####### | | ??????????????? !! ] # / % | | ??????????????? # ####### !/ % | | ???????????????? ]?#! #????## ######### | | ????????????????""" ?# ####### # ?????? | | ?????????????????R ??# ! ## ######### | | ?????????????????"" ??# ## | | ??????????????????" ???# ## % | | ?????????????????? ???# ## """""" """""" " | | ? ################+######/###### """""" """""" " | | """""" """""" " | | ^ """""" """""" " | | | | | | | | ?##################+#############/################ | | ?????????????# x #??????????????????????? | | ?????????????# @#??????????????????????? | | ?????????????# b x #??????????????????????? | | ?????????????# """ """" #??????????????????????? | | ?????????????# """u """" #??????????????????????? | | ?????????????# """ """" #??????????????????????? | | ?????????????# """" #??????????????????????? | | ?????????????# """" #??????????????????????? | | ?????????????# """s#? ?????????? ????????? | | ?????????????# ##+#????????? #??????? | | ?????????????# !## ########## ###????? | | ?????????????# ## #????? | | ?????????????############### ^#????? | | ?????????????????????????# #????? | | ?????????????????????????# +????? | | ?????????????????????????# """ #????? | | ?????????????????????????# """ #????? | | ?????????????????????????# """ !! #????? | | ?????????????????????????# """" !! #?????? | | ????????####+####?????#### """" !! #?????? | | ######### ####### # """" #?????? | | # # # # """" +?????? | | """ """ # * #?????? | | """ """ + [ = #?????? | | """ """ # |*!####### #????## | | # ## ########+########! | +----------------------------------------------------+ Best States ------------- Heat Dissipation 45 Energy Generation 16 Energy Capacity 290 Matter Stores 300 Matter Capacity 450 Sight Range 20 Robot Scan Range 15 Terrain Scan Range 16 Terrain Scan Density 10 ECM Strength 1 Armor Coverage 375 Evasion (%) 63 Targeting Accuracy 8 Matter Filtering 30 Item Schematics ----------------- Adv. Beam Cannon | -9/Materials | Scanalyzed Imp. Medium Laser | -9/Materials | Scanalyzed Imp. Assault Rifle | -9/Materials | Scanalyzed Robot Schematics ------------------ None Fabricated ------------ Nothing Repaired ---------- Nothing Alien Tech Used ----------------- None Achievements -------------- Made in Tau Ceti IV More Dakka Please Novice Programmer Power Corrupts Troublemaker Challenges ------------ None Game ------ Seed WeaponPlatingRay Manual? 0 Play Time 02:42:14 Cumulative 7.2 hours Start 2025.06.11 @ 17:03:28 End 2025.06.13 @ 02:49:40 Sessions 20 Manual Loads 0 Difficulty Rogue Special Mode None Game No. 8 Rogue 8 Adventurer 0 Explorer 0 Win Type - Total 0 Types 0/0/0/0/0/0/0/0/0/0 Lore% 4 Gallery% 10 Achievement% 8 Wizard Run 0 Options --------- Layout 0 ASCII 0 Keyboard 0 Movement Numpad Keybinds 0 Fullscreen 2 Font 20/Terminus Map View 98x62 Zoom Use 0% Tactical HUD 1 Map Filters NONE Filters NONE Steam 1 RUN: 7b7b4a8b-71b9-4fed-81bb-5cac136a6098